bitfinex/quotes_SOLUSD_20250204
["timestamp","ask_amount","ask_price","bid_price","bid_amount"]
[1738691137225,11.57778161,213.45,213.39,20.0]
[1738691137521,13.23128161,213.45,213.39,20.0]
[1738691137917,11.57778161,213.43,213.37,0.063]
[1738691138207,11.57778161,213.39,213.37,0.063]
[1738691138412,17.63568161,213.41,213.37,0.063]
[1738691138609,24.60514972,213.41,213.37,0.063]
[1738691138820,6.0579,213.41,213.37,0.063]
[1738691139917,29.29094972,213.41,213.37,0.063]
[1738691140217,24.60514972,213.41,213.37,0.063]
[1738691141016,29.29114972,213.41,213.37,0.063]
[1738691141203,24.60514972,213.41,213.37,0.063]
[1738691141399,18.54724972,213.39,213.37,0.063]
[1738691142287,24.60514972,213.41,213.37,0.063]
[1738691143216,18.54724972,213.39,213.37,0.063]
[1738691143712,19.06328959,213.39,213.37,0.063]
[1738691144019,18.54724972,213.39,213.37,0.063]
[1738691145029,19.06328959,213.39,213.37,0.063]
[1738691145196,4.6864,213.38,213.37,0.063]
[1738691146304,23.23344972,213.39,213.37,0.063]
[1738691146508,18.54724972,213.39,213.37,0.063]
[1738691148619,23.23364972,213.39,213.37,0.063]
[1738691150594,13.9278884,213.38,213.37,0.063]
[1738691151399,33.41184853,213.34,213.33,0.03]
[1738691151731,52.47513812,213.34,213.33,0.03]
[1738691151897,52.85160812,213.34,213.33,0.0001]
[1738691152105,52.97709812,213.34,213.33,0.0001]
[1738691152303,13.41184853,213.31,213.2,0.03]
[1738691152503,18.54724972,213.27,213.2,4.7204]
[1738691153107,23.23614972,213.27,213.2,24.7204]
[1738691153814,18.54724972,213.27,213.21,0.12549]
[1738691154909,18.54724972,213.27,213.22,4.6899]
[1738691155231,4.6881,213.31,213.22,4.6899]
[1738691155232,18.54724972,213.29,213.22,4.6899]
[1738691155438,20.19154972,213.31,213.23,18.67273972]
[1738691156010,18.54724972,213.29,213.24,20.0]
[1738691156314,18.54724972,213.26,213.2,0.03]
[1738691156515,18.54724972,213.26,213.21,20.0]
[1738691158449,23.23634972,213.26,213.2,0.03]
[1738691158722,23.75238959,213.26,213.2,0.03]
[1738691160304,104.55238959,213.26,213.2,0.03]
[1738691160505,104.03634972,213.26,213.2,0.03]
[1738691160705,97.10069351,213.26,213.2,0.03]
[1738691165721,111.76352204,213.26,213.2,0.03]
[1738691165918,13.22969351,213.21,213.2,0.03]
[1738691166141,107.95758191,213.21,213.2,0.03]
[1738691166347,2.0,213.19,213.15,0.03]
[1738691166649,25.02344204,213.16,213.15,0.03]
[1738691166821,25.53948191,213.16,213.15,0.03]
[1738691167851,30.23078191,213.16,213.15,0.03]
[1738691168750,16.81893338,213.16,213.15,0.03]
[1738691169633,12.12763338,213.16,213.15,0.03]
[1738691170360,11.61159351,213.16,213.15,0.03]
[1738691170554,16.30289351,213.16,213.15,0.03]
[1738691170726,29.71474204,213.16,213.15,0.03]
[1738691171047,16.30289351,213.16,213.15,0.03]
[1738691171547,11.61159351,213.16,213.15,0.03]
[1738691171847,11.61159351,213.18,213.15,0.03]
[1738691172642,11.61159351,213.16,213.15,0.03]
[1738691173452,11.61159351,213.18,213.15,0.03]
[1738691174553,11.61159351,213.2,213.15,0.03]
[1738691175138,11.61159351,213.2,213.15,20.03]
[1738691175442,11.61159351,213.22,213.16,0.12549]
[1738691175655,11.61159351,213.23,213.16,11.86257351]
[1738691176136,11.61159351,213.22,213.16,0.25098]
[1738691177265,16.30159351,213.22,213.16,20.0]
[1738691177568,11.61159351,213.2,213.16,20.0]
[1738691178758,11.61159351,213.2,213.15,0.03]
[1738691178956,11.61159351,213.18,213.15,0.03]
[1738691179130,16.30249351,213.18,213.15,0.03]
[1738691179639,11.61159351,213.18,213.15,0.03]
[1738691179840,11.61159351,213.2,213.15,0.03]
[1738691180157,11.61159351,213.25,213.18,0.12549]
[1738691180446,11.61159351,213.24,213.19,0.12549]
[1738691180650,11.61159351,213.23,213.19,0.12549]
[1738691180874,11.61159351,213.24,213.19,0.12549]
[1738691181250,16.30109351,213.24,213.16,20.063]
[1738691181562,11.61159351,213.21,213.16,20.063]
[1738691181767,11.61159351,213.21,213.16,0.063]
[1738691182073,11.61159351,213.17,213.16,0.063]
[1738691182658,32.5270431,213.17,213.16,0.063]
[1738691183377,37.2180431,213.17,213.16,0.063]
[1738691183571,38.2180431,213.17,213.16,0.063]
[1738691183768,37.2180431,213.17,213.16,0.063]
[1738691183974,23.80619457,213.17,213.16,0.063]
[1738691184366,38.4690231,213.17,213.16,0.063]
[1738691184865,21.0,213.13,213.12,0.0001]
[1738691185061,39.11519457,213.13,213.12,0.0001]
[1738691185661,19.11519457,213.13,213.12,0.0001]
[1738691185972,18.5991547,213.13,213.12,0.0001]
[1738691186689,18.5991547,213.14,213.12,0.0001]
[1738691187895,80.8,213.16,213.12,0.0001]
[1738691187896,99.3991547,213.16,213.12,0.0001]
[1738691188073,18.5991547,213.16,213.12,0.0001]
[1738691189485,23.2897547,213.2,213.12,18.5992547]
[1738691189784,18.5991547,213.18,213.12,0.0001]
[1738691190964,18.5991547,213.16,213.12,20.0001]
[1738691191886,18.5991547,213.16,213.12,0.0001]
[1738691192371,18.5991547,213.18,213.12,0.0001]
[1738691193767,18.5991547,213.21,213.14,18.5991547]
[1738691194359,18.5991547,213.23,213.15,18.5991547]
[1738691194557,18.5991547,213.24,213.16,18.5991547]
[1738691194758,0.03,213.22,213.16,18.5991547]
[1738691194961,0.03,213.22,213.15,18.5991547]
[1738691195183,0.03,213.22,213.16,0.12549]
[1738691195370,0.03,213.22,213.19,18.5991547]
[1738691195790,0.03,213.22,213.18,38.8501347]
[1738691195997,18.6291547,213.22,213.18,20.0]
[1738691196183,18.5991547,213.21,213.15,4.6913]
[1738691196383,18.5991547,213.2,213.12,4.6922]
[1738691196702,18.5991547,213.18,213.14,20.0]
[1738691196872,18.5991547,213.16,213.12,0.0001]
[1738691197196,18.5991547,213.16,213.12,20.0001]
[1738691197902,18.5991547,213.18,213.13,20.0]
[1738691198770,18.5991547,213.2,213.13,20.0]
[1738691198971,18.5991547,213.2,213.13,18.5991547]
[1738691199394,18.5991547,213.2,213.13,23.2908547]
[1738691199595,0.03,213.22,213.16,0.12549]
[1738691199787,0.03,213.22,213.17,18.5991547]
[1738691199986,0.03,213.22,213.15,18.5991547]
[1738691200192,18.5991547,213.2,213.13,43.2908547]
[1738691200497,18.5991547,213.2,213.14,20.0]
[1738691201082,18.5991547,213.18,213.12,0.0001]
[1738691201402,18.5991547,213.14,213.12,0.0001]
[1738691202389,23.2908547,213.14,213.12,0.0001]
[1738691203902,18.5991547,213.14,213.12,0.0001]
[1738691204088,18.5991547,213.16,213.12,0.0001]
[1738691206598,18.6291547,213.16,213.12,0.0001]
[1738691207589,0.03,213.16,213.12,0.0001]
[1738691208485,0.03,213.16,213.12,20.0001]
[1738691211907,0.03,213.16,213.12,0.0001]
[1738691212421,18.5991547,213.14,213.12,0.0001]
[1738691213106,0.03,213.16,213.12,0.0001]
[1738691213699,18.6291547,213.16,213.12,0.0001]
[1738691213882,4.6915,213.15,213.12,0.0001]
[1738691214218,18.5991547,213.14,213.12,0.0001]
[1738691214583,0.03,213.16,213.12,0.0001]
[1738691215610,0.03,213.16,213.12,20.0001]
[1738691216101,0.03,213.16,213.12,0.0001]
[1738691220541,0.03,213.16,213.15,20.0]
[1738691220914,0.03,213.16,213.15,38.5991547]
[1738691221416,0.03,213.16,213.15,20.0]
[1738691221920,0.03,213.16,213.13,18.5991547]
[1738691222127,0.03,213.16,213.12,0.0001]
[1738691222715,18.5991547,213.15,213.12,0.0001]
[1738691224239,0.03,213.16,213.12,4.6922]
[1738691224607,0.03,213.16,213.12,0.0001]
[1738691224829,18.5991547,213.15,213.12,0.0001]
[1738691226044,18.5991547,213.13,213.12,0.0001]
[1738691226215,32.01100323,213.13,213.12,0.0001]
[1738691226422,112.93649323,213.13,213.12,0.0001]
[1738691226643,117.62839323,213.13,213.12,0.0001]
[1738691226938,104.0910547,213.13,213.12,0.0001]
[1738691227140,99.3991547,213.13,213.12,0.0001]
[1738691227519,117.50290323,213.13,213.12,0.0001]
[1738691228828,0.37647,213.12,213.11,0.0001]
[1738691229024,19.49166457,213.12,213.11,0.0001]
[1738691230148,42.6424031,213.12,213.11,0.0001]
[1738691230942,47.3345031,213.12,213.11,0.0001]
[1738691231643,20.0,213.09,213.05,0.03]
[1738691231936,18.5991547,213.08,213.05,0.03]
[1738691232156,18.5991547,213.09,213.05,0.03]
[1738691232734,0.51603987,213.11,213.05,0.03]
[1738691232735,18.5991547,213.08,213.05,0.03]
[1738691233046,4.6932,213.07,213.05,0.03]
[1738691233245,19.11519457,213.06,213.05,0.03]
[1738691233426,18.5991547,213.06,213.05,0.03]
[1738691234850,18.5991547,213.04,212.96,17.49286919]
[1738691235026,18.5991547,213.03,212.96,17.49286919]
[1738691235221,18.5991547,212.97,212.92,7.30089233]
[1738691235422,18.5991547,213.02,212.94,18.6621547]
[1738691235631,18.5991547,213.01,212.94,0.063]
[1738691235833,18.5991547,213.01,212.94,4.759]
[1738691236931,18.5991547,213.01,212.95,20.0]
[1738691237135,18.5991547,213.01,212.94,0.063]
[1738691237947,18.5991547,212.97,212.94,0.063]
[1738691238831,23.2947547,212.97,212.94,0.063]
[1738691239032,18.5991547,212.98,212.94,0.063]
[1738691240346,18.5991547,212.96,212.94,0.063]
[1738691241424,18.5991547,212.98,212.94,0.063]
[1738691241733,18.5991547,213.0,212.94,0.063]
[1738691242232,23.2939547,213.0,212.94,0.063]
[1738691242552,18.5991547,213.0,212.94,0.063]
[1738691242936,99.3991547,213.01,212.94,18.6621547]
[1738691243247,80.8,213.01,212.95,18.5991547]
[1738691243450,80.8,213.01,212.94,0.063]
[1738691243451,0.03,213.03,212.97,18.5991547]
[1738691244261,0.03,213.03,212.99,18.5991547]
[1738691244655,0.03,213.03,212.98,11.63049197]
[1738691245649,0.03,213.03,212.98,10.12349197]
[1738691246354,0.03,213.03,212.99,4.695]
[1738691247353,0.03,213.03,212.97,38.60832666]
[1738691247657,0.03,213.03,212.99,20.0]
[1738691247846,18.63832666,213.03,212.99,20.0]
[1738691248355,18.60832666,213.02,212.98,20.0]
[1738691248548,18.63832666,213.03,212.97,4.6952]
[1738691249240,18.63832666,213.03,212.96,18.60832666]
[1738691249631,0.03,213.03,212.98,18.60832666]
[1738691250031,0.03,213.03,213.01,38.60832666]
[1738691250228,0.03,213.03,213.02,18.60832666]
[1738691251453,99.43832666,213.16,213.05,20.0]
[1738691251651,0.03,213.16,213.12,18.60832666]
[1738691251964,0.03,213.16,213.14,18.60832666]
[1738691252258,0.03,213.16,213.07,18.85930666]
[1738691252259,0.03,213.16,213.13,18.60832666]
[1738691253348,18.63832666,213.16,213.12,20.0]
[1738691253527,0.03,213.16,213.1,18.60832666]
[1738691254356,0.03,213.16,213.1,23.30092666]
[1738691254943,0.03,213.16,213.12,18.60832666]
[1738691255536,0.03,213.16,213.12,23.30032666]
[1738691255738,0.03,213.16,213.12,4.692]
[1738691256376,0.03,213.16,213.11,18.60832666]
[1738691256583,18.63832666,213.16,213.09,18.60832666]
[1738691257091,18.60832666,213.15,213.09,4.6928]
[1738691257379,18.60832666,213.1,213.03,18.60832666]
[1738691257675,0.51603987,213.14,213.02,23.30262666]
[1738691257676,18.60832666,213.09,213.02,23.30262666]
[1738691257969,18.60832666,213.12,213.05,18.73381666]
[1738691258569,18.60832666,213.14,213.08,20.0]
[1738691258983,18.60832666,213.15,213.08,38.60832666]
[1738691259176,0.03,213.16,213.11,18.60832666]
[1738691259484,0.03,213.16,213.12,4.6921]
[1738691260592,18.63832666,213.16,213.1,4.6924]
[1738691262389,0.03,213.16,213.1,38.60832666]
[1738691263089,0.03,213.16,213.11,18.60832666]
[1738691263389,0.03,213.16,213.12,18.60832666]
[1738691263570,0.03,213.16,213.15,18.60832666]
[1738691263771,0.03,213.16,213.15,18.73381666]
[1738691263977,0.03,213.16,213.15,18.85930666]
[1738691264587,0.03,213.16,213.15,23.55080666]
[1738691265987,0.03,213.16,213.15,23.80178666]
[1738691266371,0.03,213.16,213.15,37.21363519]
[1738691266767,0.03,213.22,213.2,0.12549]
[1738691267079,0.03,213.22,213.21,18.85930666]
[1738691268082,0.03,213.22,213.21,32.52213519]
[1738691268287,0.03,213.22,213.21,34.15543519]
[1738691268288,0.0001,213.22,213.21,34.15543519]
[1738691268469,0.0001,213.22,213.21,39.5488669]
[1738691268973,0.0001,213.22,213.21,40.5488669]
[1738691269179,0.0001,213.22,213.21,41.5488669]
[1738691269380,0.03,213.33,213.3,0.25098]
[1738691269582,0.03,213.33,213.32,18.60832666]
[1738691270177,0.03,213.33,213.32,20.0]
[1738691270389,0.03,213.33,213.28,18.60832666]
[1738691270577,0.03,213.33,213.27,18.60832666]
[1738691270769,0.03,213.33,213.3,20.0]
[1738691271175,0.03,213.33,213.3,38.60832666]
[1738691271402,0.03,213.33,213.31,18.60832666]
[1738691271591,0.03,213.33,213.3,18.60832666]
[1738691271897,0.03,213.33,213.31,18.60832666]
[1738691272106,0.03,213.33,213.32,18.60832666]
[1738691272480,0.03,213.33,213.32,18.85930666]
[1738691272676,0.03,213.33,213.32,23.54700666]
[1738691273608,0.03,213.33,213.32,23.29602666]
[1738691274701,0.03,213.33,213.32,23.79798666]
[1738691275196,0.03,213.33,213.32,23.54700666]
[1738691276205,0.03,213.33,213.32,23.79798666]
[1738691276706,0.03,213.38,213.37,20.0]
[1738691276920,0.03,213.38,213.37,31.71235682]
[1738691278093,0.03,213.38,213.37,31.58686682]
[1738691278505,0.03,213.38,213.35,11.58686682]
[1738691278707,0.03,213.38,213.35,18.54483339]
[1738691278909,0.03,213.38,213.37,20.0]
[1738691279512,0.03,213.38,213.29,18.54483339]
[1738691279513,18.57483339,213.38,213.29,18.54483339]
[1738691279712,18.54483339,213.36,213.29,18.54483339]
[1738691280007,0.03,213.38,213.33,38.54483339]
[1738691280217,0.03,213.38,213.36,18.54483339]
[1738691280508,0.03,213.38,213.35,18.54483339]
[1738691281390,0.03,213.38,213.34,18.54483339]
[1738691281596,0.03,213.38,213.35,18.54483339]
[1738691281800,0.03,213.38,213.34,18.54483339]
[1738691282127,18.54483339,213.37,213.28,4.6886]
[1738691282314,0.03,213.38,213.32,18.54483339]
[1738691282489,0.03,213.38,213.31,20.0]
[1738691282696,0.03,213.38,213.32,20.12549]
[1738691283591,0.03,213.38,213.37,18.54483339]
[1738691283823,0.0001,213.38,213.37,20.04679339]
[1738691283993,0.0001,213.38,213.37,54.55927531]
[1738691284187,0.03,213.44,213.41,0.12549]
[1738691284393,0.03,213.44,213.43,18.92130339]
[1738691284592,0.03,213.44,213.43,33.45864192]
[1738691284801,0.03,213.52,213.47,0.12549]
[1738691285012,0.03,213.52,213.49,18.54483339]
[1738691285403,0.03,213.52,213.5,18.54483339]
[1738691287006,0.03,213.52,213.51,18.54483339]
[1738691287407,0.03,213.52,213.51,37.21515678]
[1738691287590,0.03,213.52,213.51,51.00347531]
[1738691287794,0.03,213.52,213.51,32.45864192]
[1738691287997,0.03,213.52,213.51,33.45864192]
[1738691288425,0.03,213.52,213.51,52.00347531]
[1738691288921,0.03,213.52,213.51,53.00347531]
[1738691289123,0.063,213.57,213.54,20.37647]
[1738691289423,0.063,213.57,213.54,53.45864192]
[1738691289650,0.063,213.57,213.54,52.45864192]
[1738691289924,0.063,213.57,213.54,38.54483339]
[1738691290291,0.0001,213.55,213.54,53.16089531]
[1738691290518,0.0001,213.55,213.54,52.45864192]
[1738691291514,0.0001,213.55,213.54,43.22773339]
[1738691291899,0.0001,213.55,213.54,38.54483339]
[1738691292234,0.0001,213.55,213.53,18.54483339]
[1738691292801,0.0001,213.55,213.52,18.54483339]
[1738691293138,0.0001,213.55,213.54,18.54483339]
[1738691294333,0.0001,213.55,213.52,18.54483339]
[1738691294532,0.0001,213.55,213.51,18.54483339]
[1738691294828,0.0001,213.55,213.54,20.0]
[1738691296045,0.0001,213.55,213.51,18.54483339]
[1738691296250,0.0001,213.55,213.5,18.54483339]
[1738691296547,0.0001,213.55,213.51,18.54483339]
[1738691298641,0.0001,213.55,213.52,11.57196405]
[1738691299315,0.0001,213.55,213.54,31.57196405]
[1738691300114,0.0001,213.55,213.54,31.94843405]
[1738691300611,0.0001,213.55,213.54,18.87952322]
[1738691300913,0.0001,213.55,213.54,37.80197178]
[1738691301429,0.0001,213.55,213.54,23.18595322]
[1738691302341,0.0001,213.55,213.54,23.31144322]
[1738691303645,0.0001,213.55,213.54,23.18595322]
[1738691304338,22.97315322,213.63,213.56,20.0]
[1738691304549,22.97315322,213.63,213.58,20.0]
[1738691304939,18.50305322,213.61,213.53,18.50305322]
[1738691305145,18.50305322,213.57,213.51,0.063]
[1738691305436,24.92735322,213.59,213.53,20.0]
[1738691306250,6.4243,213.59,213.53,20.0]
[1738691306436,11.1061,213.59,213.53,20.0]
[1738691306748,6.4243,213.59,213.53,4.6831]
[1738691307229,18.50305322,213.63,213.56,18.50305322]
[1738691307652,24.72715322,213.64,213.56,18.50305322]
[1738691308641,1.5434,213.64,213.58,18.50305322]
[1738691309748,24.97375322,213.65,213.58,18.50305322]
[1738691310322,18.50305322,213.64,213.55,38.50305322]
[1738691310628,18.50305322,213.64,213.57,18.50305322]
[1738691311347,4.6809,213.63,213.57,18.50305322]
[1738691311926,18.50305322,213.64,213.57,18.50305322]
[1738691312124,23.18395322,213.64,213.57,23.18525322]
[1738691312841,6.4707,213.65,213.59,18.50305322]
[1738691313051,0.03,213.64,213.61,18.50305322]
[1738691315124,0.03,213.64,213.61,23.18425322]
[1738691315449,0.03,213.64,213.63,38.50305322]
[1738691315823,0.063,213.66,213.64,0.37647]
[1738691316027,0.063,213.66,213.65,32.99324601]
[1738691316228,0.063,213.66,213.65,33.11873601]
[1738691316934,0.063,213.66,213.65,23.18355322]
[1738691317142,0.063,213.66,213.64,4.6807]
[1738691317447,0.063,213.66,213.61,18.50305322]
[1738691317745,0.063,213.66,213.56,4.6825]
[1738691317943,0.063,213.66,213.6,18.50305322]
[1738691318735,0.063,213.66,213.58,18.50305322]
[1738691319045,4.7433,213.66,213.58,18.50305322]
[1738691319228,18.50305322,213.65,213.58,18.50305322]
[1738691319629,18.50305322,213.65,213.58,23.18505322]
[1738691319831,0.063,213.66,213.62,18.50305322]
[1738691320064,0.063,213.66,213.64,18.50305322]
[1738691320524,0.063,213.66,213.65,0.12549]
[1738691320946,0.063,213.66,213.64,18.50305322]
[1738691321130,0.063,213.66,213.64,23.18355322]
[1738691322641,0.063,213.66,213.59,2.71123344]
[1738691322642,0.063,213.66,213.62,18.50305322]
[1738691322951,13.53733853,213.63,213.54,18.50305322]
[1738691323128,20.14005322,213.64,213.54,18.50305322]
[1738691323328,20.14005322,213.64,213.56,18.50305322]
[1738691324632,1.637,213.64,213.56,18.50305322]
[1738691325432,1.637,213.64,213.56,23.24835322]
[1738691325632,1.667,213.64,213.56,23.24835322]
[1738691326530,6.3477,213.64,213.56,23.24835322]
[1738691326847,18.50305322,213.62,213.56,0.063]
[1738691327164,6.3477,213.64,213.56,0.063]
[1738691327165,24.85075322,213.64,213.56,0.063]
[1738691327324,24.85075322,213.64,213.56,18.56605322]
[1738691327653,1.667,213.64,213.56,18.56605322]
[1738691328041,1.667,213.64,213.58,18.50305322]
[1738691329254,24.85075322,213.64,213.56,18.56605322]
[1738691329641,18.50305322,213.62,213.56,0.063]
[1738691329948,18.50305322,213.6,213.56,0.063]
[1738691331358,4.6814,213.61,213.56,0.063]
[1738691333358,23.18425322,213.62,213.56,0.063]
[1738691334063,24.85075322,213.64,213.56,18.56605322]
[1738691334762,24.85085322,213.64,213.56,18.56605322]
[1738691335135,24.85085322,213.64,213.57,4.6823]
[1738691336855,0.03,213.64,213.6,18.50305322]
[1738691337062,0.03,213.64,213.62,18.50305322]
[1738691337360,0.03,213.64,213.56,0.89061665]
[1738691337361,0.03,213.64,213.63,18.50305322]
[1738691337759,0.03,213.64,213.63,32.29137175]
[1738691338066,0.03,213.64,213.63,32.41686175]
[1738691338262,0.03,213.64,213.63,33.41686175]
[1738691338438,0.0001,213.64,213.63,34.41686175]
[1738691338842,0.0001,213.64,213.63,39.09776175]
[1738691340350,0.0001,213.64,213.63,37.09776175]
[1738691341060,0.0001,213.64,213.63,36.97227175]
[1738691341263,0.0001,213.64,213.63,37.97227175]
[1738691341447,0.063,213.68,213.66,0.25098]
[1738691341647,0.063,213.68,213.67,33.29137175]
[1738691342177,0.0001,213.72,213.71,33.91380853]
[1738691342354,0.0001,213.73,213.72,14.78831853]
[1738691342554,0.03,213.86,213.76,20.12549]
[1738691342950,0.03,213.86,213.76,38.62854322]
[1738691343260,0.03,213.86,213.76,43.30664322]
[1738691343778,0.03,213.86,213.76,44.00811473]
[1738691344064,0.03,213.86,213.76,43.30664322]
[1738691344260,0.03,213.86,213.76,43.18115322]
[1738691344567,18.50305322,213.85,213.76,38.50305322]
[1738691345252,23.17965322,213.83,213.76,38.50305322]
[1738691345454,18.50305322,213.81,213.72,18.50305322]
[1738691345655,18.50305322,213.79,213.7,18.50305322]
[1738691345967,18.50305322,213.71,213.64,18.50305322]
[1738691346169,18.50305322,213.71,213.65,20.0]
[1738691346372,18.50305322,213.71,213.62,23.18405322]
[1738691346678,18.50305322,213.67,213.59,7.30089233]
[1738691346884,18.50305322,213.65,213.64,7.30089233]
[1738691347084,18.50305322,213.67,213.64,7.30089233]
[1738691347450,18.50305322,213.65,213.64,7.30089233]
[1738691347869,32.04039175,213.65,213.64,7.30089233]
[1738691348663,32.16588175,213.65,213.64,7.30089233]
[1738691349047,13.53733853,213.64,213.56,0.063]
[1738691349246,18.50305322,213.62,213.56,0.063]
[1738691349448,4.6814,213.61,213.56,0.063]
[1738691350070,18.50305322,213.6,213.56,0.063]
[1738691350780,18.50305322,213.58,213.56,0.063]
[1738691350947,13.41184853,213.57,213.56,0.063]
[1738691351144,18.50305322,213.58,213.56,0.063]
[1738691351587,13.9278884,213.57,213.56,0.063]
[1738691351963,14.0533784,213.57,213.56,0.063]
[1738691352681,14.4298484,213.57,213.51,0.063]
[1738691352859,18.50305322,213.52,213.51,0.063]
[1738691353665,23.18645322,213.52,213.51,0.063]
[1738691353866,18.50305322,213.52,213.51,0.063]
[1738691354062,18.50305322,213.54,213.51,0.063]
[1738691354262,31.11195322,213.56,213.51,0.063]
[1738691354465,18.50305322,213.54,213.51,0.063]
[1738691355061,26.42935322,213.56,213.51,0.063]
[1738691355379,18.50305322,213.58,213.51,18.56605322]
[1738691355568,18.50305322,213.6,213.51,18.56605322]
[1738691355768,18.50305322,213.6,213.53,18.50305322]
[1738691355955,6.3423,213.62,213.55,18.50305322]
[1738691356158,1.5486,213.66,213.59,18.50305322]
[1738691356458,18.50305322,213.67,213.61,18.50305322]
[1738691356663,6.3423,213.68,213.63,18.50305322]
[1738691356873,24.76095322,213.71,213.63,18.50305322]
[1738691357252,20.08165322,213.71,213.63,23.18385322]
[1738691357580,0.03,213.71,213.66,18.50305322]
[1738691357770,0.03,213.71,213.65,18.50305322]
[1738691357976,0.03,213.71,213.64,18.50305322]
[1738691358881,0.03,213.71,213.66,18.50305322]
[1738691359381,0.03,213.71,213.66,23.18325322]
[1738691359975,0.03,213.71,213.69,20.0]
[1738691361485,0.03,213.71,213.7,20.0]
[1738691361778,0.03,213.71,213.69,4.6796]
[1738691361963,0.03,213.71,213.7,20.0]
[1738691362488,0.03,213.71,213.69,20.0]
[1738691363363,18.50305322,213.7,213.61,18.50305322]
[1738691363567,18.53305322,213.71,213.63,18.50305322]
[1738691363767,0.03,213.71,213.65,18.50305322]
[1738691363987,18.53305322,213.71,213.66,20.0]
[1738691364284,18.53305322,213.71,213.6,0.25098]
[1738691364285,18.50305322,213.69,213.61,18.50305322]
[1738691364481,18.50305322,213.67,213.6,18.50305322]
[1738691364967,18.50305322,213.65,213.57,23.18505322]
[1738691365284,18.50305322,213.65,213.57,18.50305322]
[1738691365487,18.50305322,213.63,213.58,20.0]
[1738691366185,18.50305322,213.63,213.56,0.063]
[1738691366186,18.50305322,213.63,213.56,4.7454]
[1738691366402,18.50305322,213.62,213.56,0.063]
[1738691366903,18.50305322,213.6,213.56,0.063]
[1738691369764,18.50305322,213.62,213.56,0.063]
[1738691369969,43.16590175,213.66,213.57,18.50305322]
[1738691370169,18.50305322,213.7,213.62,18.50305322]
[1738691370371,4.6794,213.7,213.64,18.50305322]
[1738691370569,11.2513,213.71,213.64,18.50305322]
[1738691371988,18.50305322,213.68,213.6,18.50305322]
[1738691372287,18.50305322,213.66,213.58,18.50305322]
[1738691372677,18.50305322,213.64,213.56,18.56605322]
[1738691373074,18.50305322,213.64,213.56,0.063]
[1738691373075,18.50305322,213.62,213.56,0.063]
[1738691373273,18.50305322,213.6,213.56,0.063]
[1738691374281,18.50305322,213.62,213.56,0.063]
[1738691374598,24.70055322,213.64,213.56,18.56605322]
[1738691375675,25.21659309,213.64,213.56,18.56605322]
[1738691375880,24.70055322,213.64,213.56,23.24855322]
[1738691377298,18.50305322,213.62,213.56,0.063]
[1738691377690,23.18425322,213.62,213.56,0.063]
[1738691379917,18.50305322,213.62,213.56,0.063]
[1738691380515,4.681,213.63,213.56,18.56605322]
[1738691380694,18.50305322,213.64,213.56,18.56605322]
[1738691380892,2.24892987,213.7,213.56,18.56605322]
[1738691380893,4.6799,213.68,213.61,18.50305322]
[1738691381109,0.03,213.71,213.66,18.50305322]
[1738691381415,23.21235322,213.71,213.64,18.50305322]
[1738691381714,4.7093,213.71,213.64,18.50305322]
[1738691382105,23.21235322,213.71,213.64,18.50305322]
[1738691382521,0.03,213.71,213.67,38.50305322]
[1738691382695,0.03,213.77,213.73,20.0]
[1738691382896,0.03,213.86,213.77,20.50196]
[1738691383119,0.03,213.86,213.8,18.50305322]
[1738691383428,18.53305322,213.86,213.78,18.50305322]
[1738691383837,18.53305322,213.86,213.76,18.50305322]
[1738691384395,18.53305322,213.86,213.76,23.18115322]
[1738691384602,18.50305322,213.82,213.74,23.55792322]
[1738691385317,18.50305322,213.82,213.74,23.18145322]
[1738691385816,18.50305322,213.84,213.76,18.50305322]
[1738691386398,18.50305322,213.84,213.76,23.18105322]
[1738691387335,18.53305322,213.86,213.78,18.50305322]